Cogmind - Beta 15 @@@ ROGUE MODE // 2025.08.15 @ 12:07:17 Player: Zen9890 Result: Destroyed by as-12131 with Assembled Heavy Rifle Performance ------------- Evolutions (1) 500 Regions Visited (5) 1000 Robots Destroyed (44) 220 Value Destroyed (961) 961 Prototype IDs (9) 180 Alien Tech Used (0) 0 Bonus (105) 105 TOTAL SCORE: 2966 Bonus ------- High Alert Combat Kills 16 Follower Combat Kills 124 Friendly Fire -35 Cogmind --------- Core Integrity 0/400 Matter 300/300 Energy 100/100 System Corruption 1% Temperature Cool (0) Movement Walking (120) Location -9/Exiles Parts ------- > --- POWER (1) -------- (None) > --- PROPULSION (2) --- Aluminum Leg > --- UTILITY (4) ------ Signal Interpreter > --- WEAPON (2) ------- (None) > --- INVENTORY (5) ---- Aluminum Leg Improved Targeting Computer Small Laser Peak State ------------ > --- POWER ------------ Improved Ion Engine > --- PROPULSION ------- Armored Wheel Hover Unit > --- UTILITY ---------- Cooling System Small Storage Unit Experimental Sensor Array Signal Interpreter > --- WEAPON ----------- Light EM Pulse Cannon Light EM Pulse Cannon > --- INVENTORY -------- Hover Unit Sensor Array Seismic Detector ECM Suite Light EM Pulse Cannon Rocket Launcher Mining Laser Signal Generator [Rating: 23] Favorites ----------- Power Ion Engine Engine Ion Engine Propulsion Aluminum Leg Leg Aluminum Leg Wheel Armored Wheel Hover Unit Hover Unit Utility Small Storage Unit Device Cooling System Storage Small Storage Unit Processor Signal Interpreter Protection Light Armor Plating Weapon Improved Medium Laser Energy Gun Improved Medium Laser Energy Cannon Light EM Pulse Cannon Ballistic Gun Heavy Assault Rifle Launcher Rocket Launcher Special Weapon Mining Laser Build | -11 -10 -10 -9 -9 -9 ------- Run | Yrd Mat Min Mat Min Exi Slots Evolved 2 | . . . 2 . . Power . | . . . . . . Propulsion . | . . . . . . Utility 2 | . . . 2 . . Weapon . | . . . . . . Parts Attached 42 | 6 6 3 25 1 1 Power 7 | 1 1 1 3 . 1 Engine 7 | 1 1 1 3 . 1 Core . | . . . . . . Reactor . | . . . . . . Propulsion 16 | 2 2 2 9 1 . Treads . | . . . . . . Leg 10 | 2 . . 7 1 . Wheel 4 | . 2 . 2 . . Hover 2 | . . 2 . . . Flight . | . . . . . . Utility 7 | 1 2 . 4 . . Device 4 | . 1 . 3 . . Storage 1 | 1 . . . . . Processor 1 | . 1 . . . . Hackware . | . . . . . . Protection 1 | . . . 1 . . Artifact . | . . . . . . Weapon 12 | 2 1 . 9 . . Energy Gun 6 | 2 . . 4 . . Energy Cannon 2 | . . . 2 . . Ballistic Gun 2 | . . . 2 . . Ballistic Cannon . | . . . . . . Launcher 1 | . . . 1 . . Special Weapon 1 | . 1 . . . . Impact Weapon . | . . . . . . Slashing Weapon . | . . . . . . Piercing Weapon . | . . . . . . Special Melee Weapon . | . . . . . . Unidentified Prototypes 1 | . . . 1 . . Parts Lost 16 | . . . 8 . 8 Power 4 | . . . 2 . 2 Propulsion 4 | . . . 3 . 1 Utility 4 | . . . 1 . 3 Weapon 4 | . . . 2 . 2 Highest Loss Streak 8 | . . . 4 . 8 To Critical Strikes . | . . . . . . Average Backups 7 | 2 6 7 7 8 7 Power . | . 1 . . 1 1 Propulsion 1 | 1 2 1 . 2 1 Utility 2 | . 1 3 3 2 1 Weapon 2 | . 2 2 2 3 2 Tool/Special . | . . . . . . Unused Backups 8 | 1 . 1 3 . 3 Power 2 | . . 1 . . 1 Propulsion 1 | 1 . . . . . Utility 2 | . . . 1 . 1 Weapon 3 | . . . 2 . 1 Tool/Special . | . . . . . . Average Slot Usage (%) 94 | . 98 100 90 100 93 Engine 10 | . 13 14 9 11 10 Leg 10 | . 7 . 9 22 22 Wheel 4 | . 20 4 4 . . Hover 4 | . . 23 2 . . Device 14 | . 13 . 19 11 9 Storage 11 | . 14 14 11 11 9 Processor 10 | . . 14 11 11 11 Protection 2 | . . . 1 11 9 Energy Gun 16 | . 26 28 9 22 20 Energy Cannon 5 | . . . 8 . . Ballistic Gun 1 | . . . 2 . . Peak Build Rating 23 | 6 7 9 23 16 16 Average Rating 15 | 5 6 7 20 15 15 On Entrance 8 | . 6 7 9 15 16 Naked Turns . | . . . . . . Heaviest Build 23 | 14 15 12 23 21 21 Greatest Support 23 | 20 20 20 22 23 23 Greatest Overweight (x) 5 | . . . 5 1 . Average Overweight (x) . | . . . . . . Largest Inventory Capacity 8 | 8 8 8 8 8 8 Average Capacity 7 | 7 8 8 8 8 7 Most Carried 8 | 6 8 8 8 8 8 Average Carried 7 | 2 6 7 7 8 7 Final Capacity 8 | 8 8 8 8 8 5 Final Carried 8 | 6 8 8 8 8 3 Class Distribution -------------------- 92% | Mutant 7% | Scavenger-Mutant Dominant Class ---------------- Mutant | -10/Materials Mutant | -10/Mines Mutant | -9/Materials Mutant | -9/Mines Mutant | -9/Exiles Resources | -11 -10 -10 -9 -9 -9 ----------- Run | Yrd Mat Min Mat Min Exi Matter Collected 733 | 260 50 50 363 10 . Remotely . | . . . . . . Salvage Created 1631 | 105 175 157 1152 29 13 Parts 102 | 10 9 10 70 3 . Haulers Intercepted 4 | . . . 4 . . Recyclers Shooed . | . . . . . . Parts Field Recycled . | . . . . . . Retrieved Matter . | . . . . . . Parts Self-Destructed . | . . . . . . Prevented . | . . . . . . Kills | -11 -10 -10 -9 -9 -9 ------- Run | Yrd Mat Min Mat Min Exi Combat Hostiles Destroyed 23 | . . 2 20 . 1 Guns 12 | . . 1 11 . . Cannons 5 | . . . 5 . . AOE 6 | . . 1 4 . 1 Classes Destroyed 12 | 2 2 1 6 . 1 Worker 7 | . 1 3 3 . . Builder 2 | . . . 2 . . Tunneler 4 | 2 1 . . 1 . Hauler 4 | . . . 4 . . Recycler 3 | 1 1 . 1 . . Mechanic 1 | . . . 1 . . Watcher 1 | . 1 . . . . Grunt 18 | . . 2 16 . . Brawler 1 | . . . 1 . . Duelist 1 | . . . 1 . . Sentry 2 | . . . 2 . . Assembled 1 | . . . . . 1 Best Kill Streak 12 | 2 4 3 12 1 1 Combat Bots Only 7 | . . 2 7 . 1 Max Kills in Single Turn 2 | 1 1 1 2 1 1 Gunslinging . | . . . . . . Exploded 2 | . . 1 2 . 1 Melee . | . . . . . . Uniques/NPCs Destroyed . | . . . . . . Combat | -11 -10 -10 -9 -9 -9 -------- Run | Yrd Mat Min Mat Min Exi Hostile Shots Fired 223 | . . 14 157 . 52 Missed 63 | . . 3 48 . 12 Hits 160 | . . 11 109 . 40 Melee 4 | . . . 1 . 3 Projectile 156 | . . 11 108 . 37 Critical Strikes 6 | . . 1 . . 5 Damage Taken 2244 | . . 148 1430 . 666 Core 434 | . . 33 257 . 144 Absorbed by Shields . | . . . . . . Core Remaining (%) 93 | 100 . 86 . . . Volleys Fired 95 | 4 9 10 64 3 5 Largest 2 | 2 2 2 2 1 2 Hottest 112 | 80 100 80 112 56 112 Shots Fired 173 | 8 17 20 118 3 7 Gun 129 | 8 16 20 75 3 7 Cannon 37 | . . . 37 . . Launcher 6 | . . . 6 . . Special 1 | . 1 . . . . Kinetic 19 | . . . 19 . . Thermal 65 | . 1 . 54 3 7 Explosive 6 | . . . 6 . . Electromagnetic 83 | 8 16 20 39 . . Robot Hit Streak 10 | 2 5 8 10 2 2 Robot Miss Streak 3 | 1 3 2 3 1 3 Penetration Max . | . . . . . . Secondary Targets . | . . . . . . Shots Hit Robots 103 | 4 6 14 74 2 3 Core Hits 59 | 3 5 8 41 1 1 Critical Kills . | . . . . . . Critical Parts Destroyed . | . . . . . . Critical Strikes 8 | . . 1 6 1 . Burn 7 | . . . 6 1 . Corrupt 1 | . . 1 . . . Melee Attacks . | . . . . . . Impact . | . . . . . . Slashing . | . . . . . . Piercing . | . . . . . . Sneak Attacks . | . . . . . . Combat Hostiles . | . . . . . . Follow-up Attacks . | . . . . . . Damage Inflicted 2290 | 51 91 239 1841 32 36 Guns 1186 | 51 91 170 806 32 36 Cannons 564 | . . . 564 . . Explosions 526 | . . 55 471 . . Melee . | . . . . . . Ramming 14 | . . 14 . . . Kinetic 177 | . . . 177 . . Thermal 807 | . . 55 684 32 36 Explosive 401 | . . . 401 . . Electromagnetic 891 | 51 91 170 579 . . Impact . | . . . . . . Slashing . | . . . . . . Piercing . | . . . . . . Highest Corruption 1 | . . . . . 1 Average Corruption 1 | . . . . . 1 Corruption Purged . | . . . . . . Corruption Blocked . | . . . . . . Effects 1 | . . . . . 1 Data Loss (minor) 1 | . . . . . 1 Overload Shots . | . . . . . . Overflow Damage 1 | . . . 1 . . Projectiles . | . . . . . . Explosions 1 | . . . 1 . . Melee . | . . . . . . Knockbacks . | . . . . . . Impact . | . . . . . . Kinetic . | . . . . . . Secondary . | . . . . . . Self-Inflicted Damage 90 | . . 7 83 . . Shots 2 | . . . 2 . . Rammed 1 | . . 1 . . . Targets Rammed 2 | . . 1 1 . . Kicked 1 | . . . 1 . . Crushed . | . . . . . . Highest Temperature 291 | 18 56 225 291 32 54 Average Temperature 65 | 12 24 94 77 16 20 Received Heat Transfer 633 | . . 99 534 . . Effects 3 | . . . 3 . . Interference 3 | . . . 3 . . Siege Activations . | . . . . . . Martial Activations . | . . . . . . Shielding Activations . | . . . . . . Robots Disrupted . | . . . . . . Combat Hostiles . | . . . . . . Robots Corrupted . | . . . . . . Combat Hostiles . | . . . . . . Parts Fried 1 | . . 1 . . . Impact Corruptions . | . . . . . . Robots Melted . | . . . . . . Combat Hostiles . | . . . . . . Parts Melted 6 | . . . 6 . . Heat Transferred 2166 | . . 50 1876 148 92 Parts Sabotaged . | . . . . . . Parts Stolen . | . . . . . . Parts Stripped . | . . . . . . Power Chain Reactions 2 | . . 1 1 . . Alert | -11 -10 -10 -9 -9 -9 ------- Run | Yrd Mat Min Mat Min Exi Maximum Alert Level 2 | . . . 2 . . Low Security (%) 75 | 100 100 100 58 100 . Level 1 21 | . . . 36 . . Level 2 3 | . . . 5 . . Level 3 . | . . . . . . Level 4 . | . . . . . . Level 5 . | . . . . . . High Security . | . . . . . . Max Security . | . . . . . . Peak Influence 432 | 10 32 76 432 168 . Initial 168 | . . 11 . 168 . Average 105 | . 9 28 149 119 . Influence Increases 1004 | 15 70 90 824 5 . Destroy 0b10 Robot/C 520 | . . 40 480 . . Destroy 0b10 Robot/NC 115 | 15 20 15 60 5 . Destroy Leader 130 | . 2 10 118 . . Allied During Kill 10 | . . . 10 . . Successful Hack 30 | . 3 7 20 . . Select Force Hacks 60 | . . . 60 . . Disable Machine 75 | . 30 15 30 . . Destroy Structure 34 | . . 3 31 . . Lose Combat Pursuer 30 | . 15 . 15 . . Influence Decreases 1004 | 15 40 120 392 374 63 Entered New Map 346 | . . 19 . 264 63 Time Decay 565 | 15 40 101 299 110 . Lost Part 73 | . . . 73 . . Lost Ally 20 | . . . 20 . . Squads Dispatched 8 | . 1 1 6 . . Investigation 4 | . . . 4 . . Extermination . | . . . . . . Reinforcement 2 | . 1 . 1 . . Assault 2 | . . 1 1 . . Garrison . | . . . . . . Intercept . | . . . . . . Searches Triggered . | . . . . . . Construction Impeded . | . . . . . . Haulers Reinforced . | . . . . . . Active Scanning Responses . | . . . . . . Cargo Convoy Interrupts . | . . . . . . Stealth | -11 -10 -10 -9 -9 -9 --------- Run | Yrd Mat Min Mat Min Exi Distress Signals 5 | . 1 . 4 . . Communications Jammed . | . . . . . . Distress Signals . | . . . . . . Times Spotted 59 | . 4 7 40 . 8 Peak Tracking Total 9 | . 3 2 7 . 9 Tactical Retreats 2 | . 1 . 1 . . Traps | -11 -10 -10 -9 -9 -9 ------- Run | Yrd Mat Min Mat Min Exi Traps Triggered 3 | . . . 3 . . Indirectly . | . . . . . . Trap Hack Attempts . | . . . . . . Triggered . | . . . . . . Disarmed . | . . . . . . Reprogrammed . | . . . . . . Reused . | . . . . . . Traps Extracted . | . . . . . . Installed . | . . . . . . Triggered . | . . . . . . Machines | -11 -10 -10 -9 -9 -9 ---------- Run | Yrd Mat Min Mat Min Exi Machines Disabled 7 | . 2 1 2 . 2 Max in Single Turn 1 | . 1 1 1 . 1 Machines Repaired . | . . . . . . Machines Dismantled . | . . . . . . Machines Sabotaged . | . . . . . . Overloaded Fab Kills . | . . . . . . Hacking | -11 -10 -10 -9 -9 -9 --------- Run | Yrd Mat Min Mat Min Exi Machines Accessed 10 | . 1 1 8 . . Terminals 7 | . 1 1 5 . . Fabricators . | . . . . . . Repair Stations 1 | . . . 1 . . Recycling Units 2 | . . . 2 . . Scanalyzers . | . . . . . . Garrison Access . | . . . . . . Total Hacks 27 | . 1 3 23 . . Successful 14 | . 1 2 11 . . Failed 13 | . . 1 12 . . Catastrophic . | . . . . . . Database Lockouts . | . . . . . . Manual 14 | . . . 14 . . Terminals 22 | . 1 3 18 . . Fabricators . | . . . . . . Repair Stations 2 | . . . 2 . . Recycling Units 3 | . . . 3 . . Scanalyzers . | . . . . . . Garrison Access . | . . . . . . Terminal Hacks 11 | . 1 2 8 . . Record 1 | . . . 1 . . Robot Analysis 1 | . . . 1 . . Prototype ID Bank 5 | . . . 5 . . Alert Level 1 | . . . 1 . . Dispatch Records 1 | . . 1 . . . Maintenance Status 1 | . 1 . . . . Assault Status 1 | . . 1 . . . Fabricator Hacks . | . . . . . . Repair Station Hacks . | . . . . . . Recycling Unit Hacks . | . . . . . . Scanalyzer . | . . . . . . Garrison Access Hacks . | . . . . . . Unauthorized Hacks 3 | . . . 3 . . Terminals . | . . . . . . Fabricators . | . . . . . . Repair Stations . | . . . . . . Recycling Units 3 | . . . 3 . . Monitor 1 | . . . 1 . . Tunnel 2 | . . . 2 . . Scanalyzers . | . . . . . . Garrison Access . | . . . . . . Data Cores Recovered . | . . . . . . Used . | . . . . . . Hacking Detections 9 | . 1 1 7 . . Full Trace Events 1 | . . . 1 . . Feedback Events . | . . . . . . Feedback Blocked . | . . . . . . Robot Schematics Acquired . | . . . . . . Robots Built . | . . . . . . Authchips . | . . . . . . Time . | . . . . . . Total Robot Build Rating . | . . . . . . Part Schematics Acquired . | . . . . . . Parts Built . | . . . . . . Authchips . | . . . . . . Time . | . . . . . . Total Part Build Rating . | . . . . . . Parts Repaired . | . . . . . . Time . | . . . . . . Parts Recycled . | . . . . . . Recycled Matter . | . . . . . . Retrieved Matter . | . . . . . . Retrieved Components . | . . . . . . Parts Scanalyzed . | . . . . . . Part Schematics Acquired . | . . . . . . Parts Damaged . | . . . . . . Bothacking | -11 -10 -10 -9 -9 -9 ------------ Run | Yrd Mat Min Mat Min Exi Used RIF Installer . | . . . . . . Robots Hacked . | . . . . . . Non-combat . | . . . . . . Combat . | . . . . . . Robot Hacks Applied . | . . . . . . Relay Couplers Released . | . . . . . . Fabnet Peak Effective % . | . . . . . . Robots Rewired . | . . . . . . Allies Hacked . | . . . . . . Hacks Repelled . | . . . . . . Allies | -11 -10 -10 -9 -9 -9 -------- Run | Yrd Mat Min Mat Min Exi Total Allies 1 | . . 1 . . . Largest Group 1 | . . 1 1 . . Highest-Rated Group 31 | . . 31 31 . . Highest-Rated Ally 31 | . . 31 31 . . Total Orders . | . . . . . . Ally Attacks 16 | . . . 16 . . Total Damage 230 | . . . 230 . . Kills 5 | . . . 5 . . Allies Corrupted . | . . . . . . Allies Melted . | . . . . . . Intel | -11 -10 -10 -9 -9 -9 ------- Run | Yrd Mat Min Mat Min Exi Active Infowar (turns) 981 | . 139 . 842 . . Sensors 842 | . . . 842 . . Seismic 139 | . 139 . . . . Robot Analysis Total 1 | . . . 1 . . Derelict Logs Recovered 2 | . . 1 . 1 . Drone Launches . | . . . . . . Drone Recoveries . | . . . . . . Exploration | -11 -10 -10 -9 -9 -9 ------------- Run | Yrd Mat Min Mat Min Exi Turns Passed 1940 | 150 143 249 1036 221 141 Spaces Moved 1509 | 103 110 362 658 176 100 Core 14 | 6 . . 8 . . Treads . | . . . . . . Legs 627 | 97 28 . 226 176 100 Wheels 438 | . 82 9 347 . . Hover 430 | . . 353 77 . . Flight . | . . . . . . Fastest Speed 50 | 50 80 56 100 120 120 Average Speed 102 | 115 90 56 119 121 120 Slowest Speed 300 | 120 120 80 300 190 120 Overloaded Moves . | . . . . . . Propulsion Burnouts . | . . . . . . Robots Hopped . | . . . . . . Potential Cave-ins . | . . . . . . Cave-ins Triggered . | . . . . . . Exploration Rate (%) 39 | 7 31 76 46 57 22 Regions Visited 5 Branch Regions 3 Pre-discovered Areas 2 | . . . 2 . . Known Exits Taken 4 | . 1 1 1 1 . Unknown Exits Taken 1 | 1 . . . . . Scrap Searched 3 | . . 1 . 2 . Spaces Dug . | . . . . . . Terrain Destroyed 32 | . . 4 28 . . Melee . | . . . . . . Projectile . | . . . . . . AOE 32 | . . 4 28 . . Terrain Rammed . | . . . . . . Walls Destroyed . | . . . . . . Machines Disabled . | . . . . . . Actions | -11 -10 -10 -9 -9 -9 --------- Run | Yrd Mat Min Mat Min Exi Total 1735 | 126 133 386 795 180 115 Wait 18 | . . 4 14 . . Move 1504 | 102 109 361 657 175 100 Hop . | . . . . . . Pick Up 37 | 13 5 3 15 . 1 Fast Attach 10 | . 1 . 9 . . Attach 14 | 6 1 . 6 . 1 Detach 1 | . . . 1 . . Swap 19 | . 5 3 10 1 . Drop 29 | 1 3 4 18 1 2 Fire 95 | 4 9 10 64 3 5 Melee . | . . . . . . Ram 1 | . . 1 . . . Kick 1 | . . . 1 . . Crush . | . . . . . . Escape Stasis . | . . . . . . Rewire 6 | . . . . . 6 Trap . | . . . . . . Miscellaneous . | . . . . . . Route ------- -11/Scrapyard -10/Materials -10/Mines (discovered 2 exits: *Mat x2) -9/Materials (discovered 2 exits: *Mat / *Min) -9/Mines (discovered 2 exits: *Mat / *Exi) -9/Exiles (discovered 1 exit: *Min) History --------- Turn | Location | Event 20 | -11/Scrapyard | Discovered new exit (range 16) 151 | -11/Scrapyard | Entered Materials 277 | -10/Materials | Discovered new exit (range 16) 294 | -10/Materials | Identified exit to Mines 294 | -10/Materials | Entered Mines 314 | -10/Mines | Build established: Mutant 459 | -10/Mines | Discovered new exit (range 7) 462 | -10/Mines | Received a Rocket Launcher from a helpful Derelict 491 | -10/Mines | Identified exit to Materials 509 | -10/Mines | Discovered exit to Materials (range 8) 512 | -10/Mines | Found a damaged Exp. Sensor Array with a note attached 513 | -10/Mines | Found Prototype Device 515 | -10/Mines | Learned Materials non-interactive machine intel 520 | -10/Mines | Met a Derelict testing a Signal Generator 524 | -10/Mines | Found Signal Generator 543 | -10/Mines | Entered Materials 543 | -9/Materials | Accompanied by 1 ally 543 | -9/Materials | Evolved 2 slots: Utility x2 544 | -9/Materials | Loaded intel: 51 non-interactive machine locations 556 | -9/Materials | Identified Exp. Sensor Array 953 | -9/Materials | Discovered new exit (range 16) 1377 | -9/Materials | Discovered new exit (range 14) 1438 | -9/Materials | Core integrity fell below 50% 1451 | -9/Materials | Lost 4 parts (1p2n1u) 1508 | -9/Materials | Destroyed 7 combat bots 1577 | -9/Materials | Identified exit to Mines 1579 | -9/Materials | Entered Mines 1664 | -9/Mines | Discovered new exit (range 6) 1668 | -9/Mines | Identified exit to Materials 1673 | -9/Mines | Learned Materials stockpile data 1796 | -9/Mines | Deemed a non-threat by the Exiles lab entrance 1796 | -9/Mines | Discovered new exit (range 5) 1799 | -9/Mines | Identified exit to Exiles 1800 | -9/Mines | Entered Exiles 1824 | -9/Exiles | Discovered new exit (range 15) 1839 | -9/Exiles | Identified exit to Mines 1866 | -9/Exiles | Met 8R-AWN 1885 | -9/Exiles | Met EX-HEX 1922 | -9/Exiles | Attacked by the Exiles 1933 | -9/Exiles | Core integrity fell below 20% 1941 | -9/Exiles | Destroyed by as-12131 with Assembled Heavy Rifle Last Messages --------------- 01932_ as-19971 destroyed. 01933_ Penetrated by HV Slug. 01933_ HV Slug penetrates Assembled Analyzer. 01933_ Penetrated by HV Slug. 01933_ HV Slug penetrates Assembled Analyzer. 01934_ System corrupted: Component data lost. 01936_ Penetrated by HV Slug. 01936_ HV Slug penetrates Wall. 01936_ Penetrated by HV Slug. 01936_ Imp. Medium Laser destroyed. 01936_ HV Slug penetrates Wall. 01938_ Imp. Medium Laser destroyed. 01939_ Penetrated by HV Slug. 01939_ HV Slug penetrates Wall. 01940_ Ion Engine destroyed. 01941_ Penetrated by HV Slug. 01941_ Imp. Aluminum Leg destroyed. 01941_ HV Slug penetrates Machine. 01941_ Penetrated by HV Slug. 01941_ HV Slug penetrates Machine. Map ----- +----------------------------------------------------+ | ?????????????????????????????????????????????????? | | ?????????????????????????????????????????????????? | | ?????????????????????????????????????????????????? | | ?????????????????????????????????????????????????? | | ?????????????????????????????????????????????????? | | ?????????????????????????????????????????????????? | | ?????????????????????????????????????????????????? | | ?????????????????????????????????????????????????? | | ?????????????????????????????????????????????????? | | ?????????????????????????????????????????????????? | | ?????????????????????????????????????????????????? | | ?????????????????????????????????????????????????? | | ?????????????? ??????????????????????????????????? | | ??????????????#"#?###????????????????????????????? | | ??????????#??""" """"##??????????????????????????? | | ???????? " """ """"##?????????????????????????? | | ??????? "" #?????????????????????????? | | ??????? " """#?????????????????????????? | | ?????? a #???????????#####?????????? | | ?????? " "####???????##" #?????????? | | ?????? ;;#???????#" #?????????? | | ?????? | #??????##" ##????????? | | ?????? %=% #????### ###??????? | | ???????"" a##???# ######## | | ????????"" ##?## #""""## | | ?????????" @ g### | | ????????" ## * | | ????????"" a #### | | ???????? ""#?#"""""#### | | ???????? #"""##?#######??#### | | ???????? ######??????????????# | | ???????? ##???????????????????? | | ???????? a ##????????????????????? | | ????????? """ a ""#?????????????????????? | | ?????????? " ""#" a"##?????????????????????? | | ???????????" ?"?##"""""""##??????????????????????? | | ?????????????????#########???????????????????????? | | ?????????????????????????????????????????????????? | | ?????????????????????????????????????????????????? | | ?????????????????????????????????????????????????? | | ?????????????????????????????????????????????????? | | ?????????????????????????????????????????????????? | | ?????????????????????????????????????????????????? | | ?????????????????????????????????????????????????? | | ?????????????????????????????????????????????????? | | ?????????????????????????????????????????????????? | | ?????????????????????????????????????????????????? | | ?????????????????????????????????????????????????? | | ?????????????????????????????????????????????????? | | ?????????????????????????????????????????????????? | +----------------------------------------------------+ Best States ------------- Heat Dissipation 50 Energy Generation 12 Energy Capacity 265 Matter Stores 300 Matter Capacity 300 Sight Range 16 Robot Scan Range 20 Terrain Scan Density 10 Armor Coverage 150 Evasion (%) 55 Item Schematics ----------------- None Robot Schematics ------------------ None Fabricated ------------ Nothing Repaired ---------- Nothing Alien Tech Used ----------------- None Achievements -------------- Brute Force True Hacker Challenges ------------ None Game ------ Seed ScatterHellfireBlade Manual? 0 Play Time 00:44:20 Cumulative 14.3 hours Start 2025.08.15 @ 10:45:39 End 2025.08.15 @ 12:07:17 Sessions 1 Manual Loads 0 Difficulty Rogue Special Mode None Game No. 18 Rogue 18 Adventurer 0 Explorer 0 Win Type - Total 0 Types 0/0/0/0/0/0/0/0/0/0 Lore% 9 Gallery% 22 Achievement% 21 Wizard Run 0 Options --------- Layout 1 ASCII 0 Keyboard 0 Movement Mouse Keybinds 0 Fullscreen 1 Font 24/Smallcaps Map View 50x35 Zoom Use 0% Tactical HUD 1 Map Filters NONE Filters NONE Steam 1 RUN: d1b5261a-65b6-4d0d-8558-b4a91810329b